Workbook

Sheet How to use this system
A1: Movements.xlsm | D1: Ver.10-00 | AA1: Movements.xlsm | AD1: Ver.10-00
A3: このシステムの使い方 | AA3: How to use this system
A5: このシステムファイルはGPSデータ分析用のマクロを含みます。 | AA5: This system file contains macros for analysing GPS data.
A6: 必要なマクロを選んで実行してください。マクロはMac・Windows両方で利用可能です。 | AA6: Pick and run a macro suitable. Macros work both on Mac and Windows.
A7: ただし、MacではさらにApplescriptファイル (MovementAnalyser.scpt) を次の場所に置いておく必要があります。 | AA7: On a Mac, an applescript file (MovementAnalyser.scpt) must be in the following location on your computer.
B8: User/Library/Application Scripts/com.microsoft.Excel/ | AB8: User/Library/Application Scripts/com.microsoft.Excel/
B9: Libraryは、Finderメニューで「移動」を選択、optionキーを押すと「ライブラリ」として見つかります。 | AB9: To find Library, select "Go" in the Finder menu and press the 'Option' key.
B11: システムは時々更新されます。 | AB11: Ths system is occasionally revised.
B12: 常に最新バージョンをお使いください。 | AB12: Please use the latest version.
A15: マクロの種類と機能 （下記ワークフローを参照） | AA15: * Macros and their functions (Refer to the work flows below)
A16: １．Ch_Creator (C) : | C16: Check (Ch) ファイを作成（未加工データを導入、分析の基礎となるデータセットを整備） | AA16: 1. Ch_Creator (C) : | AC16: Creates a check (Ch) file (Incorporates raw data and creates a data set for analysis)
A17: ２．An_Creator (A)： | C17: Analysis (An) ファイルを作成（Chファイルからデータを導入、概要分析） | AA17: 2. An_Creator (A)： | AC17: Creates an analysis (An) file (introduces data from a check file and conducts an overview analysis.)
A18: ３．SheetGenerator (G): | C18: Anファイルに分析用シートを追加 | AA18: 3. SheetGenerator (G): | AC18: Generates one or a pair of sheets, each specialised for a particular analysis, to an analysis file.
A19: ４．SheetProcessor (P): | C19: Ch, An両ファイルで、シート別の処理 | AA19: 4. SheetProcessor (P): | AC19: Processes a sheet. (What it does depends on the type of the sheet.)
A20: ５．SubMenu (M): | C20: 補助メニューの表示 | AA20: 5. SubMenu (M): | AC20: Shows the sub-menu.
A22: 各マクロにはショートカットキーが設定されています。 | AA22: * Short-cut keys are preset for each macro.
A23: ウィンドウズでは[Ctrl]+[Shift]、マックでは[option]+[command]+[shift]を押し下げた状態で | AA23: Press [Ctrl]+[Shift] in Windows, or [option]+[command]+[shift] in Mac
A24: 上記マクロ名に続く括弧内の文字をタイプしてください。 | AA24: and type the letter in brackets following the macro names above.
A26: マクロを実行するとまず、その処理内容の説明が表示されます。その時点で処理をキャンセルできます。 | AA26: * Macros first show a message telling what they will do. Cancelling the run is possible at this point.
A28: 分析シートの使い方については本システムのサイトを参照してください。 | AA28: * For how to use the sheets each specialized for a particular analysis, refer to the accounts on the right-hand side.
A31: 本システム（MovementAnalyser.xlsm）について | AA31: About this system (MovementAnalyser.xlsm)
B32: 本システムは、測位間隔が一定のGPSデータを対象にします。 | AB32: This system handles GPS data sampled at a regular time interval.
B33: ただし、データ欠損はあって構いません。データ欠損も意味あるデータとして扱います。 | AB33: Data missing is acceptable. The system treats it as data of some implication.
B34: 測位スケジュールの異なる期間の混在もある程度許容されます。 | AB34: A mixture of different sampling schedules is also acceptable to some degree.
B36: 本システムはさまざまな方法で各時点の動きを数値化します。 | AB36: Using various methods, the system quantifies the animal movement at each point in time.
B37: そのデータを時間軸で図化して、移動パターンを明らかにします。 | AB37: Then, it plots the results in timeline charts to reveal the pattern of animal movements.
B39: 本システムは現在開発中で、未発表の内容が含まれます。 | AB39: This system is under development and includes unpublished techniques.
B40: ファイルの取り扱いにご注意ください。 | AB40: Please pay due attention when handling this file.
A43: Copyright©HirofumiHIRAKAWA | AA43: Copyright©HirofumiHirakawa
A46: 基本的なワークフロー | AA46: Basic work flow
D48: 未加工データの | AD48: Excel file
D49: エクセルファイル | AD49: with raw data
C50: Ch_Creator > | D50: V | E50: チェック (Ch) ファイを作成し、外れ値を除外 | AC50: Ch_Creator > | AD50: V | AE50: Creates a check (Ch) file and removes outliers.
D51: Chファイル | AD51: Ch File
C52: SheetProcessor > | D52: V | E52: 各Checkシートの個別処理 | AC52: SheetProcessor > | AD52: V | AE52: Processes each sheet, separately.
D53: Chファイル | AD53: Ch File
C54: An_Creator > | D54: V | E54: 分析 (An) ファイルを作成し、概要分析を実行 | AC54: An_Creator > | AD54: V | AE54: Creates an analysis (An) file for analysis and conducts the overview analysis.
D55: Anファイル | AD55: An File
C56: SheetGenerator > | D56: V | E56: 分析シート（Ov, Ac, PA, PP）を追加 | AC56: SheetGenerator > | AD56: V | AE56: Adds sheets (Ov, Ac, PA, PP), each for specific analysis, as needed.
D57: Anファイル | AD57: An File
C58: SheetProcessor > | D58: V | E58: 各分析シートの個別処理 | AC58: SheetProcessor > | AD58: V | AE58: Processes each sheet, separately.
D59: Anファイル | AD59: An File
C60: SheetProcessor > | D60: V | E60: kmlファイルの作成 | AC60: SheetProcessor > | AD60: V | AE60: Creates a kml file.
D61: kmlファイル | AD61: kml File
D62: （Google Earth 出力) | AD62: (Output for Google Earth)

Sheet Charts (hidden)
A1: ColorSeries | BA1: 高度H | BC1: 横幅W | BG1: H/W | BH1: W/H | BI1: 片Angle=30 | BK1: 理論W/H | BL1: 理論H/W
A2: 1 | B2: 0 | BA2: 128.4 | BC2: 148.8 | BG2: =BA2/BC2 -> 0.8629032258 | BH2: =BC2/BA2 -> 1.158878505 | BI2: =DEGREES(ATAN(BH2/2)) -> 30.08968624 | BK2: =TAN(RADIANS(30))*2 -> 1.154700538 | BL2: =1/BK2 -> 0.8660254038
A3: 2 | B3: 0 | BA3: 77.2 | BC3: 89.29 | BG3: =BA3/BC3 -> 0.8645984993 | BH3: =BC3/BA3 -> 1.156606218 | BI3: =DEGREES(ATAN(BH3/2)) -> 30.04092837
A4: 3 | B4: 0 | BA4: 57.38 | BC4: 66.46 | BG4: 0.863376467 | BH4: 1.15824329 | BI4: =DEGREES(ATAN(BH4/2)) -> 30.07606089
A5: 4 | B5: 0 | BA5: 31.59 | BC5: 36.5 | BG5: 0.8654794521 | BH5: 1.155428933 | BI5: 30.01564776
A6: 5 | B6: 0 | BA6: 11.78 | BC6: 13.62 | BG6: 0.8649045521 | BH6: 1.156196944 | BI6: 30.03214123
A7: 6 | B7: 0 | BA7: 6.95 | BC7: 8 | BG7: 0.86875 | BH7: 1.151079137 | BI7: 29.92212986
A8: 7 | B8: 0 | BA8: 400 | BC8: 462 | BG8: 0.8658008658 | BH8: 1.155 | BI8: 30.00643379
A9: 8 | B9: 0 | BA9: 211 | BC9: 244 | BG9: 0.8647540984 | BH9: 1.156398104 | BI9: 30.03646035
A10: 9 | B10: 0 | BA10: 702 | BC10: 800 | BG10: 0.8775 | BH10: 1.13960114 | BI10: 29.67451501
A11: 10 | B11: 0 | BA11: 804 | BC11: 930 | BG11: 0.864516129 | BH11: 1.156716418 | BI11: 30.04329412
A12: 11 | B12: 0 | BA12: 351 | BC12: 405 | BG12: 0.8666666667 | BH12: 1.153846154 | BI12: 29.98163937
A13: 12 | B13: 0 | BA13: 210 | BC13: 242 | BG13: 0.867768595 | BH13: 1.152380952 | BI13: 29.95013654
A14: 13 | B14: 0 | BA14: 70 | BC14: 81 | BG14: 0.8641975309 | BH14: 1.157142857 | BI14: 30.05244771
A15: 14 | B15: 0 | BA15: 49 | BC15: 56.9 | BG15: 0.8611599297 | BH15: 1.16122449 | BI15: 30.13997509
A16: 15 | B16: 0 | BA16: 35 | BC16: 40.5 | BG16: 0.8641975309 | BH16: 1.157142857 | BI16: 30.05244771
A17: 16 | B17: 0 | BA17: 21 | BC17: 24.56 | BG17: 0.8550488599 | BH17: 1.16952381 | BI17: 30.31746945
A18: 17 | B18: 0 | BA18: 7 | BC18: 8.6 | BG18: 0.8139534884 | BH18: 1.228571429 | BI18: 31.56181184
A19: 18 | B19: 0
A20: 19 | B20: 0 | BC20: hgt1 | BG20: 50
A21: 20 | B21: 0 | BC21: hgt2 | BG21: 1000
A22: 21 | B22: 0 | BC22: 0 | BG22: =BC22*(1+(BG$21+BG$20-BC22)/(BG$21)/2) -> 0 | BH22: =BC22*(1+(BG$21-BC22)/(BG$21-BG$20)/2) -> 0 | BI22: =BC22 -> 0
A23: 22 | B23: 0 | BC23: 25 | BG23: =BC23*(1+(BG$21+BG$20-BC23)/(BG$21)/2) -> 37.8125 | BH23: 37.82894737 | BI23: =BC23 -> 25
A24: 23 | B24: 0 | BC24: 50 | BG24: 75 | BH24: 75 | BI24: 50
A25: 24 | B25: 0 | BC25: 100 | BG25: 147.5 | BH25: 147.3684211 | BI25: 100
A26: 25 | B26: 0 | BC26: 200 | BG26: 285 | BH26: 284.2105263 | BI26: 200
A27: 26 | B27: 0 | BC27: 500 | BG27: 637.5 | BH27: 631.5789474 | BI27: 500
A28: 27 | B28: 0 | BC28: 750 | BG28: 862.5 | BH28: 848.6842105 | BI28: 750
A29: 28 | B29: 0 | BC29: 900 | BG29: 967.5 | BH29: 947.3684211 | BI29: 900
A30: 29 | B30: 0 | BC30: 990 | BG30: 1019.7 | BH30: 995.2105263 | BI30: 990
A31: 30 | B31: 0 | BC31: 1000 | BG31: 1025 | BH31: 1000 | BI31: 1000
A32: 31 | B32: 0 | BC32: 1050 | BG32: =BC32*(1+(BG$21+BG$20-BC32)/(BG$21)/2) -> 1050 | BH32: 1022.368421 | BI32: 1050
A33: 32 | B33: 0 | BC33: 1100 | BG33: 1072.5 | BH33: 1042.105263 | BI33: 1100
A34: 33 | B34: 0 | BC34: 1200 | BG34: 1110 | BH34: 1073.684211 | BI34: 1200
A35: 34 | B35: 0
A36: 35 | B36: 0
A37: 36 | B37: 0
A38: 37 | B38: 0
A39: 38 | B39: 0
A40: 39 | B40: 0
A41: 40 | B41: 0
A42: 41 | B42: 0
A43: 42 | B43: 0
A44: 43 | B44: 0
A45: 44 | B45: 0
A46: 45 | B46: 0
A47: 46 | B47: 0
A48: 47 | B48: 0
A49: 48 | B49: 0
A50: 49 | B50: 0
A51: 50 | B51: 0
A52: 51 | B52: 0
A53: 52 | B53: 0
A54: 53 | B54: 0
A55: 54 | B55: 0
A56: 55 | B56: 0
A57: 56 | B57: 0 | BF57: 21 | BG57: -2 | BH57: -6 | CA57: -2 | CB57: -5 | CC57: -2 | CD57: -5
A58: 57 | B58: 0 | BF58: 20 | BG58: -2 | BH58: -6 | CA58: -2 | CB58: -4 | CC58: -2 | CD58: -4
A59: 58 | B59: 0 | BF59: 19 | BG59: -2 | BH59: -5 | CA59: -2.1 | CB59: -2.9 | CC59: -2.1 | CD59: -2.9
A60: 59 | B60: 0 | BF60: 18 | BG60: -2 | BH60: -4 | CA60: -2.9 | CB60: -2.1 | CC60: -2.9 | CD60: -2.1
A61: 60 | B61: 0 | BF61: 17 | BG61: -2.1 | BH61: -2.9 | CA61: -4 | CB61: -2 | CC61: -4 | CD61: -2
A62: 61 | B62: 0 | AX62: angle | AY62: radian | AZ62: cos | BA62: sin | BB62: 4.3 | BC62: =BB62 -> 4.3 | BD62: 5.8 | BE62: =BD62 -> 5.8 | BF62: 16 | BG62: -2.9 | BH62: -2.1 | BI62: =$BH62 -> -2.1 | BL62: =$BH62 -> -2.1 | BM62: =$BH62 -> -2.1 | CA62: -5.1 | CB62: -1.9 | CC62: -5.1 | CD62: -1.9
A63: 62 | B63: 0 | AX63: 0 | AY63: =RADIANS(AX63) -> 0 | AZ63: =COS(AY63) -> 1 | BA63: =SIN(AY63) -> 0 | BB63: =$AZ63*BB$62 -> 4.3 | BC63: =$BA63*BC$62 -> 0 | BD63: =$AZ63*BD$62 -> 5.8 | BE63: =$BA63*BE$62 -> 0 | BF63: 15 | BG63: -4.1 | BH63: -1.9 | BI63: =$BH63 -> -1.9 | BM63: -1.9 | CA63: -5.7 | CB63: -1 | CC63: -5.7 | CD63: -1
A64: 63 | B64: 0 | AX64: 15 | AY64: =RADIANS(AX64) -> 0.2617993878 | AZ64: =COS(AY64) -> 0.9659258263 | BA64: =SIN(AY64) -> 0.2588190451 | BB64: =AZ64*BB$62 -> 4.153481053 | BC64: 1.112921894 | BD64: =$AZ64*BD$62 -> 5.602369792 | BE64: =$BA64*BE$62 -> 1.501150462 | BF64: 14 | BG64: -4.7 | BH64: -1 | BI64: -1 | BM64: -1 | CA64: -5.1 | CB64: -0.1 | CC64: -5.1 | CD64: -0.1
A65: 64 | B65: 0 | AX65: 30 | AY65: 0.5235987756 | AZ65: 0.8660254038 | BA65: 0.5 | BB65: 3.723909236 | BC65: 2.15 | BD65: 5.022947342 | BE65: 2.9 | BF65: 13 | BG65: -4.1 | BH65: -0.1 | BI65: -0.1 | BL65: -0.1 | BM65: -0.1 | CA65: -4 | CB65: 0 | CC65: -4 | CD65: 0
A66: 65 | B66: 0 | AX66: 45 | AY66: 0.7853981634 | AZ66: 0.7071067812 | BA66: 0.7071067812 | BB66: 3.040559159 | BC66: 3.040559159 | BD66: 4.101219331 | BE66: 4.101219331 | BF66: 12 | BG66: -2.9 | BH66: 0.1 | BI66: 0.1 | BL66: 0.1 | BM66: 0.1 | CA66: -2.9 | CB66: 0.1 | CC66: -2.9 | CD66: 0.1
A67: 66 | B67: 0 | AX67: 60 | AY67: 1.047197551 | AZ67: 0.5 | BA67: 0.8660254038 | BB67: 2.15 | BC67: 3.723909236 | BD67: 2.9 | BE67: 5.022947342 | BF67: 11 | BG67: -2.1 | BH67: 0.9 | BI67: 0.9 | BL67: 0.9 | BM67: 0.9 | CA67: -2.1 | CB67: 0.9 | CC67: -2.1 | CD67: 0.9
A68: 67 | B68: 0 | AX68: 75 | AY68: 1.308996939 | AZ68: 0.2588190451 | BA68: 0.9659258263 | BB68: 1.112921894 | BC68: 4.153481053 | BD68: 1.501150462 | BE68: 5.602369792 | BF68: 10 | BG68: -2 | BH68: 2 | BI68: 2 | BL68: 2 | BM68: 2 | CA68: -2 | CB68: 2 | CC68: -2 | CD68: 2
A69: 68 | B69: 0 | AX69: 90 | AY69: 1.570796327 | AZ69: 6.123233996e-17 | BA69: 1 | BB69: 2.632990618e-16 | BC69: 4.3 | BD69: 3.551475718e-16 | BE69: 5.8 | BF69: 9 | BG69: -2 | BH69: 3 | BI69: 3 | BL69: 3 | BM69: 3 | CA69: -2 | CB69: 3 | CC69: -2 | CD69: 3
A70: 69 | B70: 0 | AX70: 105 | AY70: 1.832595715 | AZ70: -0.2588190451 | BA70: 0.9659258263 | BB70: -1.112921894 | BC70: 4.153481053 | BD70: -1.501150462 | BE70: 5.602369792 | BF70: 8 | BG70: -2 | BH70: 4 | BI70: 4 | BM70: 4 | CA70: -2 | CB70: 4 | CC70: -2 | CD70: 4
A71: 70 | B71: 0 | AX71: 120 | AY71: 2.094395102 | AZ71: -0.5 | BA71: 0.8660254038 | BB71: -2.15 | BC71: 3.723909236 | BD71: -2.9 | BE71: 5.022947342 | BF71: 7 | BG71: -1.9 | BH71: 5 | BI71: 5 | BM71: 5 | CA71: -1.9 | CB71: 5 | CC71: -1.9 | CD71: 5
A72: 71 | B72: 0 | AX72: 135 | AY72: 2.35619449 | AZ72: -0.7071067812 | BA72: 0.7071067812 | BB72: -3.040559159 | BC72: 3.040559159 | BD72: -4.101219331 | BE72: 4.101219331 | BF72: 6 | BG72: -1 | BH72: 5.4 | BI72: 5.4 | BM72: 5.4 | CA72: -1 | CB72: 5.4 | CC72: -1 | CD72: 5.4
A73: 72 | B73: 0 | AX73: 150 | AY73: 2.617993878 | AZ73: -0.8660254038 | BA73: 0.5 | BB73: -3.723909236 | BC73: 2.15 | BD73: -5.022947342 | BE73: 2.9 | BF73: 5 | BG73: -0.1 | BH73: 5 | BI73: 5 | BM73: 5 | CA73: -0.1 | CB73: 5 | CC73: -0.1 | CD73: 5
A74: 73 | B74: 0 | AX74: 165 | AY74: 2.879793266 | AZ74: -0.9659258263 | BA74: 0.2588190451 | BB74: -4.153481053 | BC74: 1.112921894 | BD74: -5.602369792 | BE74: 1.501150462 | BF74: 4 | BG74: 0 | BH74: 4 | BI74: 4 | BK74: 4 | BM74: 4 | CA74: 0 | CB74: 4 | CC74: 0 | CD74: 4
A75: 74 | B75: 0 | AX75: 180 | AY75: 3.141592654 | AZ75: -1 | BA75: 1.224646799e-16 | BB75: -4.3 | BC75: 5.265981236e-16 | BD75: -5.8 | BE75: 7.102951435e-16 | BF75: 3 | BG75: 0 | BH75: 3 | BI75: 3 | BK75: 3 | BM75: 3 | CA75: 0 | CB75: 3 | CC75: 0 | CD75: 3
A76: 75 | B76: 0 | AX76: 195 | AY76: 3.403392041 | AZ76: -0.9659258263 | BA76: -0.2588190451 | BB76: -4.153481053 | BC76: -1.112921894 | BD76: -5.602369792 | BE76: -1.501150462 | BF76: 2 | BG76: 0 | BH76: 2 | BI76: 2 | BK76: 2 | BM76: 2 | CA76: 0 | CB76: 2 | CC76: 0 | CD76: 2
A77: 76 | B77: 0 | AX77: 210 | AY77: 3.665191429 | AZ77: -0.8660254038 | BA77: -0.5 | BB77: -3.723909236 | BC77: -2.15 | BD77: -5.022947342 | BE77: -2.9 | BF77: 1 | BG77: 0 | BH77: 1 | BI77: 1 | BK77: 1 | BM77: 1 | CA77: 0 | CB77: 1 | CC77: 0 | CD77: 1
A78: 77 | B78: 0 | AX78: 225 | AY78: 3.926990817 | AZ78: -0.7071067812 | BA78: -0.7071067812 | BB78: -3.040559159 | BC78: -3.040559159 | BD78: -4.101219331 | BE78: -4.101219331 | BG78: 0 | BH78: 0 | BI78: 0 | BJ78: =$BH78 -> 0 | CA78: 0 | CB78: 0 | CC78: 0 | CD78: 0
A79: 78 | B79: 0 | AX79: 240 | AY79: 4.188790205 | AZ79: -0.5 | BA79: -0.8660254038 | BB79: -2.15 | BC79: -3.723909236 | BD79: -2.9 | BE79: -5.022947342 | BF79: 1 | BG79: 0 | BH79: -1 | BI79: =$BH79 -> -1 | BK79: -1 | BM79: -1 | CA79: 0.1 | CB79: -1.9 | CC79: 0 | CD79: -1
A80: 79 | B80: 0 | AX80: 255 | AY80: 4.450589593 | AZ80: -0.2588190451 | BA80: -0.9659258263 | BB80: -1.112921894 | BC80: -4.153481053 | BD80: -1.501150462 | BE80: -5.602369792 | BF80: 2 | BG80: 0 | BH80: -2.1 | BI80: -2.1 | BK80: -2.1 | BM80: -2.1 | CA80: 0.9 | CB80: -2.9 | CC80: 0 | CD80: -2
A81: 80 | B81: 0 | AX81: 270 | AY81: 4.71238898 | AZ81: -1.836970199e-16 | BA81: -1 | BB81: -7.898971855e-16 | BC81: -4.3 | BD81: -1.065442715e-15 | BE81: -5.8 | BF81: 3 | BG81: 0.1 | BH81: -3.1 | BI81: -3.1 | BK81: -3.1 | BM81: -3.1 | CA81: 2 | CB81: -3 | CC81: 0 | CD81: -3
A82: 81 | B82: 0 | AX82: 285 | AY82: 4.974188368 | AZ82: 0.2588190451 | BA82: -0.9659258263 | BB82: 1.112921894 | BC82: -4.153481053 | BD82: 1.501150462 | BE82: -5.602369792 | BF82: 4 | BG82: 1 | BH82: -3.9 | BI82: -3.9 | BK82: -3.9 | BM82: -3.9 | CA82: 3 | CB82: -3 | CC82: 0 | CD82: -4
A83: 82 | B83: 0 | AX83: 300 | AY83: 5.235987756 | AZ83: 0.5 | BA83: -0.8660254038 | BB83: 2.15 | BC83: -3.723909236 | BD83: 2.9 | BE83: -5.022947342 | BF83: 5 | BG83: 2 | BH83: -4 | BI83: -4 | BM83: -4 | CA83: 4 | CB83: -3 | CC83: 0.1 | CD83: -5
A84: 83 | B84: 0 | AX84: 315 | AY84: 5.497787144 | AZ84: 0.7071067812 | BA84: -0.7071067812 | BB84: 3.040559159 | BC84: -3.040559159 | BD84: 4.101219331 | BE84: -4.101219331 | BF84: 6 | BG84: 3 | BH84: -4 | BI84: -4 | BM84: -4 | CA84: 5.1 | CB84: -2.9 | CC84: 1 | CD84: -5.4
A85: 84 | B85: 0 | AX85: 330 | AY85: 5.759586532 | AZ85: 0.8660254038 | BA85: -0.5 | BB85: 3.723909236 | BC85: -2.15 | BD85: 5.022947342 | BE85: -2.9 | BF85: 7 | BG85: 4 | BH85: -4 | BI85: -4 | BM85: -4 | CA85: 5.9 | CB85: -2.1 | CC85: 1.9 | CD85: -5
A86: 85 | B86: 0 | AX86: 345 | AY86: 6.021385919 | AZ86: 0.9659258263 | BA86: -0.2588190451 | BB86: 4.153481053 | BC86: -1.112921894 | BD86: 5.602369792 | BE86: -1.501150462 | BF86: 8 | BG86: 5.1 | BH86: -3.8 | BI86: -3.8 | CA86: 6 | CB86: -1 | CC86: 2 | CD86: -4
A87: 86 | B87: 0 | AX87: 360 | AY87: 6.283185307 | AZ87: 1 | BA87: -2.449293598e-16 | BB87: 4.3 | BC87: -1.053196247e-15 | BD87: 5.8 | BE87: -1.420590287e-15 | BF87: 9 | BG87: 5.8 | BH87: -3 | BI87: -3 | CA87: 5.9 | CB87: 0.1 | CC87: 2 | CD87: -3
A88: 87 | B88: 0 | BF88: 10 | BG88: 6 | BH88: -2 | BI88: -2 | CA88: 5.1 | CB88: 0.9 | CC88: 2 | CD88: -2
A89: 88 | B89: 0 | BF89: 11 | BG89: 6 | BH89: -1 | BI89: -1 | CA89: 4 | CB89: 1 | CC89: 2.1 | CD89: -0.9
A90: 89 | B90: 0 | BF90: 12 | BG90: 5.9 | BH90: 0.1 | BI90: 0.1 | CA90: 2.9 | CB90: 1.1 | CC90: 2.9 | CD90: -0.1
A91: 90 | B91: 0 | BF91: 13 | BG91: 5.1 | BH91: 0.9 | BI91: 0.9 | BN91: =$BH91 -> 0.9 | CA91: 2.1 | CB91: 1.9 | CC91: 4 | CD91: 0
A92: 91 | B92: 0 | BF92: 14 | BG92: 4 | BH92: 1 | BI92: 1 | BL92: =$BH92 -> 1 | BN92: =$BH92 -> 1 | CA92: 2 | CB92: 3 | CC92: 5.1 | CD92: 0.1
A93: 92 | B93: 0 | BF93: 15 | BG93: 2.9 | BH93: 1.1 | BI93: 1.1 | BL93: =$BH93 -> 1.1 | BN93: =$BH93 -> 1.1 | CA93: 2 | CB93: 4 | CC93: 5.7 | CD93: 1
A94: 93 | B94: 0 | BF94: 16 | BG94: 2.1 | BH94: 1.9 | BI94: 1.9 | BL94: =$BH94 -> 1.9 | BN94: =$BH94 -> 1.9 | CA94: 2.9 | CB94: 4.9 | CC94: 5.1 | CD94: 1.9
A95: 94 | B95: 0 | BF95: 17 | BG95: 2 | BH95: 3 | BI95: 3 | BL95: =$BH95 -> 3 | BN95: =$BH95 -> 3 | CA95: 4 | CB95: 5 | CC95: 4 | CD95: 2
A96: 95 | B96: 0 | BF96: 18 | BG96: 2 | BH96: 4 | CA96: 5 | CB96: 5 | CC96: 2.9 | CD96: 2.1
A97: 96 | B97: 0 | BF97: 19 | BG97: 2.1 | BH97: 5.1 | CA97: 6 | CB97: 5 | CC97: 2.1 | CD97: 2.9
A98: 97 | B98: 0 | BF98: 20 | BG98: 2.9 | BH98: 5.9 | CC98: 2 | CD98: 4
A99: 98 | B99: 0 | BF99: 21 | BG99: 4 | BH99: 6 | CC99: 2 | CD99: 5
A100: 99 | B100: 0
A101: 100 | B101: 0
A102: 101 | B102: 0
A103: 102 | B103: 0
A104: 103 | B104: 0
A105: 104 | B105: 0
A106: 105 | B106: 0
A107: 106 | B107: 0
A108: 107 | B108: 0
A109: 108 | B109: 0
A110: 109 | B110: 0
A111: 110 | B111: 0
A112: 111 | B112: 0
A113: 112 | B113: 0
A114: 113 | B114: 0
A115: 114 | B115: 0
A116: 115 | B116: 0
A117: 116 | B117: 0
A118: 117 | B118: 0
A119: 118 | B119: 0
A120: 119 | B120: 0
A121: 120 | B121: 0
A122: 121 | B122: 0
A123: 122 | B123: 0
A124: 123 | B124: 0
A125: 124 | B125: 0
A126: 125 | B126: 0
A127: 126 | B127: 0
A128: 127 | B128: 0
A129: 128 | B129: 0
A130: 129 | B130: 0
A131: 130 | B131: 0
A132: 131 | B132: 0
A133: 132 | B133: 0
A134: 133 | B134: 0
A135: 134 | B135: 0
A136: 135 | B136: 0
A137: 136 | B137: 0
A138: 137 | B138: 0
A139: 138 | B139: 0
A140: 139 | B140: 0
A141: 140 | B141: 0
A142: 141 | B142: 0
A143: 142 | B143: 0
A144: 143 | B144: 0
A145: 144 | B145: 0
A146: 145 | B146: 0
A147: 146 | B147: 0
A148: 147 | B148: 0
A149: 148 | B149: 0
A150: 149 | B150: 0
A151: 150 | B151: 0
A152: 151 | B152: 0
A153: 152 | B153: 0
A154: 153 | B154: 0
A155: 154 | B155: 0
A156: 155 | B156: 0
A157: 156 | B157: 0
A158: 157 | B158: 0
A159: 158 | B159: 0
A160: 159 | B160: 0
A161: 160 | B161: 0
A162: 161 | B162: 0
A163: 162 | B163: 0
A164: 163 | B164: 0
A165: 164 | B165: 0
A166: 165 | B166: 0
A167: 166 | B167: 0
A168: 167 | B168: 0
A169: 168 | B169: 0
A170: 169 | B170: 0
A171: 170 | B171: 0
A172: 171 | B172: 0
A173: 172 | B173: 0
A174: 173 | B174: 0
A175: 174 | B175: 0
A176: 175 | B176: 0
A177: 176 | B177: 0
A178: 177 | B178: 0
A179: 178 | B179: 0
A180: 179 | B180: 0
A181: 180 | B181: 0
A182: 181 | B182: 0
A183: 182 | B183: 0
A184: 183 | B184: 0
A185: 184 | B185: 0
A186: 185 | B186: 0
A187: 186 | B187: 0
A188: 187 | B188: 0
A189: 188 | B189: 0
A190: 189 | B190: 0
A191: 190 | B191: 0
A192: 191 | B192: 0
A193: 192 | B193: 0
A194: 193 | B194: 0
A195: 194 | B195: 0
A196: 195 | B196: 0
A197: 196 | B197: 0
A198: 197 | B198: 0
A199: 198 | B199: 0
A200: 199 | B200: 0
... 102 more rows

Sheet BLK (hidden)

Sheet MetaData (hidden)
A1: データ背景情報 | B1: *印は必須項目、マクロANCreator実行時に入力がチェックされます。MetaDataは今後の分析の基礎になります。なるべく詳しく記入のこと。
A3: 動物 | B3: 個体ID* | C3: 種名* | D3: 性別* | E3: 体重（kg） | F3: 体長（cm） | G3: 体高（cm） | H3: 年齢 | I3: 耳標など
B5: 追加項目 | C5: 学名
A8: 調査実施者 | B8: 代表者氏名* | C8: 組織名（省略なしで）*
B10: その他、氏名
A12: 捕獲 | B12: 場所（地名） | C12: 年月日 (yyyy/mm/dd) | D12: 時分 (hh:mm) | E12: 緯度（小数5桁まで） | F12: 経度（小数5桁まで） | G12: 方法* | H12: 誘引餌
B14: 追加項目
A17: 放逐 | B17: 場所（地名）* | C17: 年月日* (yyyy/mm/dd) | D17: 時分* (hh:mm) | E17: 緯度（小数5桁まで） | F17: 経度（小数5桁まで）
A20: 首輪回収 | B20: 場所（地名） | C20: 年月日 (yyyy/mm/dd) | D20: 時分 (hh:mm) | E20: 緯度（小数5桁まで） | F20: 経度（小数5桁まで） | G20: 経緯・状況
A23: 機器情報 | B23: メーカー名* | C23: 機器型式* | D23: ソフトウェアバージョン | E23: 重さ（g) | F23: 首輪ID | G23: 首輪色 | H23: 周波数
B25: 追加項目
A28: 測位設定 | B28: 基本周期（分） | C28: 第２周期（分） | D28: 第３周期（分） | E28: 測位努力時間（秒） | F28: 0時からのずれ | H28: GPS記録日時 | I28: 記録と現地との時差
B30: 追加項目
A33: データ概要 | B33: 開始日時 | C33: 終了日時 | D33: 期間（日） | E33: 全レコード数 | F33: 除外レコード数 | G33: 日時欠損・無効 | H33: 標高欠損 | I33: 経緯度欠損・無効
A35: 有効データ | B35: 開始日時 | C35: 終了日時 | D35: 期間（日） | E35: 分析用レコード数 | G35: 測定の重複・大きな遅れ | H35: 標高：異様なな動き | I35: 位置：異様な動き
A38: 備考
A40: ENG
A41: MetaData | B41: Note： Items marked with asterisk (*) need to be fulfilled. The metadata searves as the basis for future analysises. Details are required.
A43: Animal | B43: Individual ID* | C43: Species Name* | D43: Sex* | E43: Body Weight （kg） | F43: Body Length （cm） | G43: Body Height （cm） | H43: Age | I43: Ear Tags or others
B45: Additional | C45: Scientific Name
A48: Personnel | B48: Representative * | C48: Institute * (Do not abridge. Enter the full official name, please.)
B50: Other Staff
A52: Capture | B52: Place Name | C52: yyyy/mm/dd | D52: hh:mm | E52: Latitude (5 decimals) | F52: Longitude (5 decimals) | G52: Method* | H52: Baits
B54: Additional
A57: Release | B57: Place Name * | C57: yyyy/mm/dd * | D57: hh:mm * | E57: Latitude (5 decimals) | F57: Longitude (5 decimals)
A60: Collar Retrieval | B60: Place Name | C60: yyyy/mm/dd | D60: hh:mm | E60: Latitude (5 decimals) | F60: Longitude (5 decimals) | G60: Situation
A63: Device Info. | B63: Manufacturer * | C63: Device Name * | D63: Firmware Version | E63: Weight （g) | F63: Collar ID | G63: Collar Color | H63: Signal Frequency
B65: Additional
A68: Time Settings | B68: Primary (min) * | C68: Secondary (min) | D68: Tertiary (min) | E68: Effort Time (sec) | F68: Phase Offset | H68: GPS-Log Time | I68: Time Gap
B70: Additional
A73: Data Outline | B73: Start Date/Time | C73: End Date/Time | D73: Duration | E73: #Given Records | F73: #Removed Records | G73: #Time Missing/Improper | H73: #Height Missing | I73: #LatLon Missing/Improper
A75: Valid Records | B75: Start Date/Time | C75: End Date/Time | D75: Duration | E75: #Records Left for Analysis | G75: #Extra & Large Delay | H75: #Height Erratic Move | I75: #LatLon Erratic Move
A78: Memo

Sheet RawData (hidden)
B1: DT | C1: LAT | D1: LON | E1: HGT | F1: DOP
B2: チェック | C2: チェック | E2: チェック | F2: 保管
A3: ID | B3: 測位日時 | C3: 緯度 | D3: 経度 | E3: 標高
A4: ENG
B5: DT | C5: LAT | D5: LON | E5: HGT | F5: DOP
B6: Check | C6: Check | E6: Check | F6: Cache
A7: ID | B7: Date/Time | C7: Latitude | D7: Longitude | E7: Height

Sheet TimeCheck (hidden)
B1: DTL | C1: DLY | D1: DT | E1: ATI | F1: EIP | H1: FRQ | L1: SCH | Q1: 検討内容 | R1: N/A | S1: 認識不能 | T1: 時刻逆転 | U1: 定刻前 | V1: 重複 | W1: 周期外 | Y1: 原データ数 | AB1: 探索周期 | AE1: 日時有効 | AI1: しきい値の第一候補値選択 とmaxGAP 計算停止の条件
B2: GPS記録 | C2: 遅れ | D2: 定刻 | E2: 間隔 | H2: 推定測位周期 | L2: 推定測位周期の変化 | Q2: 件数 | Y2: 日時無効 | AA2: =Z2/Z1 ->  | AB2: 測位の遅れ | AC2: 分秒 | AD2: 秒 | AE2: 遅れ除外 | AG2: =AF2/AF1 ->  | AI2: 測位遅れ maxGAP | AJ2: 候補値 | AK2: 1.08 | AL2: 指定値を上回るmaxGA系列の中で、最小のmaxGAPをしきい値の第一候補とします。
A3: ID | B3: 測位日時 | C3: [分秒] | D3: 遅れ除去 | E3: 実 [時分] | F3: 推定 周期 [分] | H3: 周期 [時分] | I3: 頻度 | J3: 期間 上位 | L3: 切替日時 | M3: 周期 [分] | N3: ０時 ずれ [分] | P3: 処理 | Q3: そのまま 修正 無効化 | Y3: 日時有効 | AA3: =Z3/Z1 ->  | AB3: 定刻前最大 定刻後最小 定刻後最大 | AE3: 残 | AG3: =AF3/AF1 ->  | AJ3: 処理停止 | AK3: 1.05 | AL3: maxGAPの計算は指定値を下回るまで行われます。
A4: 1
A5: 2 | AI5: 測位の遅れ | AJ5: しきい値 | AL5: 除外
A6: 3 | AI6: maxGAP | AJ6: 分秒 | AK6: 秒 | AL6: 累積数 | AM6: 累積率
A7: ENG
B8: DTL | C8: DLY | D8: DT | E8: ATI | F8: EIP | H8: FRQ | L8: SCH | Q8: Checked | R8: N/A | S8: Ill-format | T8: T.Reversed | U8: Before sched. | V8: Extra | W8: Irregular | Y8: Original | AB8: Probe Cycle | AE8: D/T Valids | AI8: Conditions for selecting the first threshold candidate and stopping the calculation of maxGAP
B9: GPS-log Time | C9: Delay | D9: Scheduled Time | E9: Time Interval | H9: Inferred Sampling Intervals | L9: Inferred Sampling Schedule | Q9: #Cases | Y9: Invalids | AA9: =Z9/Z8 ->  | AB9: Delay | AC9: [mm:ss] | AD9: [ss] | AE9: Delay | AG9: =AF9/AF8 ->  | AI9: maxGAP for Delay | AJ9: Candidate | AK9: 1.08 | AL9: Of maxGAP series larger than the set value, the minimum one is presented as an initial candidate.
A10: ID | B10: Date/Time | C10: Delay [mm:ss] | D10: Delay Cut-Off | E10: Actual [hhmm] | F10: Infer. [mm] | H10: Interval [hhmm] | I10: #Cases | J10: Ranks | L10: Switchover Time | M10: Interval [min] | N10: Phase Offset [min] | P10: Handling | Q10: Intact Corrected Invalidated | Y10: Valids | AA10: =Z10/Z8 ->  | AB10: Max Negat. Minimum Maximum | AE10: Remainder | AG10: =AF10/AF8 ->  | AJ10: Stops when | AK10: 1.05 | AL10: The calculation of maxGAP is conducted until its value falls below the set value.
A11: 1
A12: 2 | AI12: Delay | AJ12: Threshold | AL12: Removal (Cumulative)
A13: 3 | AI13: maxGAP | AJ13: (mm:ss) | AK13: (seconds) | AL13: Removal | AM13: Rate

Sheet HeightCheck (hidden)
B1: DT | C1: HGT0 | D1: HGT1 | E1: HGT2 | F1: HGT3 | H1: TimeCheck後 | J1: 日時有効 | M1: 標高あり | P1: 除外 | Y1: 処理の停止条件と除外候補となる最大グループサイズ
D2: 除外後 | F2: 除外 | J2: 標高欠損 | L2: =K2/K1 ->  | M2: 除外 | O2: =N2/N1 ->  | P2: 上頂点 | R2: =Q2/Q1 ->  | Y2: maxGAP | Z2: 1.03 | AA2: maxGAPが指定値を下回ると、処理を自動終了します。 | AH2: 各段階のmaxGAP系列
A3: ID | B3: 測位日時 | C3: 標高 | D3: 標高 | E3: 標高差 | F3: 標高 | J3: 残 | L3: =K3/K1 ->  | M3: 残 | O3: =N3/N1 ->  | P3: 下頂点 | R3: =Q3/Q1 ->  | Y3: グループサイズ | Z3: 4 | AA3: 除外対象とするグループサイズの上限を指定します。 | AG3: maxGAP | AH3: しきい値 | AI3: 分割数
J5: 情報領域 | K5: 除外候補 | P5: ラベル位置 | Y5: 標高差往復積の平方根 | AA5: 除外候補 | AB5: 除外候補 | AD5: 除外
J6: 転写元 | K6: グループNo. | L6: データ行 | M6: データ ID | N6: 候補数 | O6: 往復積 | P6: 日時 | Q6: 標高 | Y6: maxGAP | Z6: しきい値 | AA6: グループ数 | AB6: 上頂点数 | AC6: 下頂点数 | AD6: 上頂点数 | AE6: 下頂点数
A7: ENG
B8: DT | C8: HGT0 | D8: HGT1 | E8: HGT2 | F8: HGT3 | H8: After TimeCheck | J8: D/T Valid | M8: Height | P8: Removed | Y8: Conditions for stopping the process and the maximum group size for a removal candidate.
D9: After | E9: Height | F9: Height | J9: No Height | L9: =K9/K8 ->  | M9: Removed | O9: =N9/N8 ->  | P9: Upward | R9: =Q9/Q8 ->  | Y9: maxGAP | Z9: 1.03 | AA9: The process stops when maxGAP falls below the set value. | AH9: maxGAP series at each phase
A10: ID | B10: Date/Time | C10: Height | D10: Removal | E10: Difference | F10: Removed | J10: Remainder | L10: =K10/K8 ->  | M10: Remainder | O10: =N10/N8 ->  | P10: Downward | R10: =Q10/Q8 ->  | Y10: Group Size | Z10: 4 | AA10: Groups up to the set size become removal candidates. | AG10: maxGAP | AH10: Threshould | AI10: #Groups
A11: 1
A12: 2 | J12: For Info. | K12: Removal Candidates | P12: Label Position | Y12: Height Dif. Products | AA12: Candidate | AB12: Candidates | AD12: Removed
A13: 3 | J13: Region | K13: Group No. | L13: Data Row | M13: Data ID | N13: Group Size | O13: Scores | P13: Date/Time | Q13: Height | Y13: maxGAP | Z13: Threshold | AA13: #Groups | AB13: Up. Peaks | AC13: Down. pks | AD13: Up. Peaks | AE13: Down. pks
AC25: J=1 | AD25: J=2 | AE25: J=3
Y26: remains | Z26: data No | AA26: HGT | AB26: difH | AC26: SCRs(i, 1) | AD26: SCRs(i, 2) | AE26: SCRs(i, 3)
Y28: 5 | Z28: T2NRs-5
Y29: 4 | Z29: T2NRs-4
Y30: 3 | Z30: T2NRs-3
Y31: 2 | Z31: T2NRs-2
Y32: 1 | Z32: T2NRs-1
Y33: 0 | Z33: T2NRs

Sheet RemoteCheck (hidden)
B1: DT | C1: LAT | D1: LON | E1: X | F1: Y | G1: DIS | H1: GRP | K1: 分離集団と除外候補 | N1: TimeCheck後 | P1: 日時有効 | S1: 経緯度あり | V1: 有効経緯度 | AB1: マクロ処理の停止条件
G2: 隣接 | H2: グループ | J2: 集団サイズGAP | L2: しきい値 | P2: 経緯度欠損 | R2: =Q2/Q1 ->  | S2: 角度範囲外 | U2: =T2/T1 ->  | V2: 除外 | X2: =W2/W1 ->  | AB2: 距離のmaxGAP | AD2: 1.03 | AE2: 最大GAPが指定値を下回ると、処理を自動終了します。 | AK2: 各段階のmaxGAP系列
A3: ID | B3: 測位日時 | C3: 緯度 | D3: 経度 | E3: X座標 | F3: Y座標 | G3: 距離 | H3: 番号 | J3: maxGAP | P3: 残り | R3: =Q3/Q1 ->  | S3: 残り | U3: =T3/T1 ->  | V3: 残り | X3: =W3/W1 ->  | AB3: 分離グループ数 | AD3: 50 | AE3: グループ数が指定値を上回ると、処理を自動終了します。 | AJ3: maxGAP | AK3: しきい値 | AL3: 分割数
A4: 1
A5: 2 | J5: 集団ID | K5: サイズ | L5: 除外? | N5: X | O5: Y | P5: LAT | Q5: LON | R5: Date/Time | AB5: 隣接測位点間距離 | AD5: 分離 | AE5: 除外候補 | AG5: 除外
A6: 3 | AB6: maxGAP | AC6: しきい値 | AD6: グループ数 | AE6: グループ数 | AF6: 点数 | AG6: グループ数 | AH6: 点数
A7: ENG
B8: DT | C8: LAT | D8: LON | E8: X | F8: Y | G8: DIS | H8: GRP | K8: Remote Groups & Removal | N8: After TimeCheck | P8: D/T Valid | S8: #Lot/Lons | V8: Valid L/Ls | AB8: Conditions for stopping the process.
G9: Neighb. | H9: Group | J9: GAP in Group Size | L9: Threshold | P9: No Lat/Lons | R9: =Q9/Q8 ->  | S9: Out of range | U9: =T9/T8 ->  | V9: Removed | X9: =W9/W8 ->  | AB9: maxGAP in distance | AD9: 1.03 | AE9: The process stops when maxGAP falls below the set value. | AK9: maxGAP series at each phase
A10: ID | B10: Date/Time | C10: Latit. | D10: Longit. | E10: X coord. | F10: Y coord. | G10: Distance | H10: No. | J10: maxGAP | P10: Remainder | R10: =Q10/Q8 ->  | S10: Remainder | U10: =T10/T8 ->  | V10: Remainder | X10: =W10/W8 ->  | AB10: No. of Separated Groups | AD10: 50 | AE10: The process stops when #groups exceeds the set value. | AJ10: maxGAP | AK10: Threshold | AL10: #Groups
A11: 1
A12: 2 | J12: Group ID | K12: Size | L12: Remove? | N12: X | O12: Y | P12: LAT | Q12: LON | R12: Date/Time | AB12: Distance | AD12: Separaeted | AE12: Removal Candidates | AG12: Removed
A13: 3 | AB13: maxGAP | AC13: Threshold | AD13: #Groups | AE13: #Groups | AF13: #Points | AG13: #Groups | AH13: #Points
AB22: 距離nitiji のmaxGAP

Sheet LeapCheck (hidden)
B1: DT | C1: LAT | D1: LON | E1: X | F1: Y | G1: RMV | H1: Yvals | L1: 30 | M1: 500 | N1: 1.5 | O1: 2 | P1: 2 | S1: RemoteCheck後 | U1: 有効 | AG1: 飛躍度の計算方法とパラメーター
L2: 60 | M2: 1000 | N2: 2 | O2: 3 | P2: 3 | U2: 除外 | W2: =V2/V1 ->  | AG2: 角度の影響 | AI2: 角度短辺長法による飛躍度計算における角度の影響の大きさを指定します。1-10の間で調整できます。0を指定すると、中点-重心乖離法が使われます。
A3: ID | B3: 測位日時 | C3: 緯度 | D3: 経度 | E3: X座標 | F3: Y座標 | G3: 除外 | H3: Y値 | L3: 90 | M3: 2000 | N3: 3 | O3: 4 | P3: 4 | U3: 残 | W3: =V3/V1 ->  | AG3: 前後データ幅 | AI3: セルAI1で0を指定した時、中点-重心乖離法による飛躍度計算に必要な前後範囲（データ点数）を指定します｡3未満の指定は3に自動修正されます。
J5: No. | K5: 飛躍度 | L5: 角度 | M5: 短辺 | N5: 長短比 | O5: 前期間 | P5: 後期間 | S5: Row | T5: X | U5: Y | AG5: 飛躍度 | AH5: 除外
AG6: しきい値 | AH6: 候補 | AI6: 実行
A7: ENG
B8: DT | C8: LAT | D8: LON | E8: X | F8: Y | G8: RMV | H8: Yvals | L8: 30 | M8: 500 | N8: 1.5 | O8: 2 | P8: 2 | S8: After RemoteCheck | U8: Valid | AG8: Calculation method for the leap score and its parameter
L9: 60 | M9: 1000 | N9: 2 | O9: 3 | P9: 3 | U9: Removed | W9: =V9/V8 ->  | AG9: Ang. Effect | AH9: 3 | AI9: The effect of angles on the leap score in the angle shoter-side-length method. Set a number between 1 and 10. Set 0 to use the midpoint-centroid deviation method.
A10: ID | B10: Date/Time | C10: Latit. | D10: Longit. | E10: X-coord. | F10: Y-coord. | G10: Removals | H10: Y value | L10: 90 | M10: 2000 | N10: 3 | O10: 4 | P10: 4 | U10: Remainder | W10: =V10/V8 ->  | AG10: #Neighbuors | AH10: 8 | AI10: Only when cell AI1 is 0, the number is eefective (used for calculating the leap score in the midpoint-centrod deviation method). A less-than-3 value is automatically changed to 3.
J12: No. | K12: Leap | L12: Angle | M12: Short Side | N12: L-S.Ratio | O12: Period1 | P12: Period2 | S12: Row | T12: X | U12: Y | AG12: Leap Score | AH12: Removals
AG13: Threshold | AH13: Candidates | AI13: Removed

Sheet CheckOut (hidden)
A1: 元データ | B1: 日時 | F1: 標高 | I1: 経緯度 | M1: 除外レコード | T1: 日時 | W1: 標高 | Z1: 経緯度 | AD1: 除外後のレコード | AL1: Time | AQ1: CheckOut
N2: =M2/$A2 ->  | AE2: =AD2/$A2 ->  | AK2: Check | AL2: Height
A3: ID. | B3: 内訳 | C3: 欠損 無効 周期外 | D3: 重複 | E3: 遅れ | F3: 欠損 | G3: 上頂点 | H3: 下頂点 | I3: 欠損 無効 | J3: 孤立 | K3: 飛躍 | M3: No. | N3: ID. | O3: 日時 | P3: 緯度 | Q3: 経度 | R3: 標高 | T3: 欠損 無効 周期外 | U3: 重複 | V3: 遅れ | W3: 欠損 | X3: 上頂点 | Y3: 下頂点 | Z3: 欠損 無効 | AA3: 孤立 | AB3: 飛躍 | AD3: No. | AE3: ID. | AF3: 日時 | AG3: 緯度 | AH3: 経度 | AI3: 標高 | AL3: Remote Leap
AD4: 1
AD5: 2 | AK5: 除外要因の | AM5: 日時 | AP5: 標高 | AS5: 経緯度
AD6: 3 | AK6: 重複チェック | AM6: 欠損 | AN6: 重複 | AO6: 遅れ | AP6: 欠損 | AQ6: 上頂点 | AR6: 下頂点 | AS6: 欠損 | AT6: 孤立 | AU6: 飛躍
AD7: 4 | AL7: 欠損
AD8: 5 | AK8: 日時 | AL8: 重複
AD9: 6 | AL9: 遅れ
AD10: 7 | AL10: 欠損
AD11: 8 | AK11: 標高 | AL11: 上頂点
AD12: 9 | AL12: 下頂点
AD13: 10 | AL13: 欠損
AD14: 11 | AK14: 経緯度 | AL14: 孤立
AD15: 12 | AL15: 飛躍
AD16: 13
AD17: 14 | AL17: 除外数 | AM17: 日時 | AN17: 標高 | AO17: 経緯度 | AP17: 単独 | AQ17: 2重 | AR17: 3重
AD18: 15 | AL18: 日時
AD19: 16 | AL19: 標高
AD20: 17 | AL20: 経緯度
AD21: 18 | AL21: 欠損/無効 | AO21: 除外計
AD22: 19
AD23: 20 | AL23: 除外数 | AM23: 日時 | AN23: 標高 | AO23: 経緯度 | AP23: 単独 | AQ23: 2重 | AR23: 3重
AD24: 21 | AL24: 日時
AD25: 22 | AL25: 標高
AD26: 23 | AL26: 経緯度
AD27: 24 | AL27: 大きな遅れ／異質な動き | AO27: 除外計
A28: ENG
A29: Original | B29: Time | F29: Height | I29: Lat/Lon | M29: Removed Records | T29: Time | W29: Height | Z29: Lat/Lon | AD29: Records after Removal | AL29: Time | AQ29: CheckOut
N30: =M30/$A30 ->  | AE30: =AD30/$A30 ->  | AK30: Check | AL30: Height
A31: ID. | B31: CHK | C31: N/A Invalid Irreg. | D31: Extra | E31: Delay | F31: N/A | G31: Up | H31: Down | I31: N/A Invalid | J31: Remote | K31: Leap | M31: No. | N31: ID. | O31: Date/Time | P31: Lat | Q31: Lon | R31: Height | T31: N/A Invalid Irreg. | U31: Extra | V31: Delay | W31: N/A | X31: Up | Y31: Down | Z31: N/A Invalid | AA31: Remote | AB31: Leap | AD31: No. | AE31: ID. | AF31: Date/Time | AG31: Lat | AH31: Lon | AI31: Height | AL31: Remote Leap
AD32: 1
AD33: 2 | AK33: Cross Check in | AM33: Time | AP33: Height | AS33: Lat/Lon
AD34: 3 | AK34: Removal Factors | AM34: Missing | AN34: Double | AO34: Delay | AP34: xMissing | AQ34: Up | AR34: Down | AS34: Missing | AT34: Remote | AU34: Leap
AD35: 4 | AL35: Missing
AD36: 5 | AK36: Time | AL36: Extra
AD37: 6 | AL37: Delay
AD38: 7 | AL38: Missing
AD39: 8 | AK39: Height | AL39: Up
AD40: 9 | AL40: Down
AD41: 10 | AL41: Missing
AD42: 11 | AK42: LatLon | AL42: Remote
AD43: 12 | AL43: Leap
AD44: 13
AD45: 14 | AL45: Removal | AM45: Time | AN45: Height | AO45: Lat/Lon | AP45: Solo | AQ45: Double | AR45: Triple
AD46: 15 | AL46: Time
AD47: 16 | AL47: Height
AD48: 17 | AL48: LatLon
AD49: 18 | AL49: Missing/Improper | AO49: Total | AP49: =SUM(AP46:AP48) -> 0 | AQ49: =SUM(AQ46:AQ48) -> 0 | AR49: =SUM(AR46:AR48) -> 0 | AS49: =SUM(AP49:AR49) -> 0
AD50: 19
AD51: 20 | AL51: Removal | AM51: Time | AN51: Height | AO51: Lat/Lon | AP51: Solo | AQ51: Double | AR51: Triple
AD52: 21 | AL52: Time
AD53: 22 | AL53: Height
AD54: 23 | AL54: LatLon
AD55: 24 | AL55: Delay/Erratic Move | AO55: Total | AP55: =SUM(AP52:AP54) -> 0 | AQ55: =SUM(AQ52:AQ54) -> 0 | AR55: =SUM(AR52:AR54) -> 0 | AS55: =SUM(AP55:AR55) -> 0

Sheet Data (hidden)
B1: 処理： | I1: 全期間 | J1: 全期間 | L1: 分析ファイルデータ期間 | O1: チェックファイルデータ期間 | Q1: チェックファイル
A2: 分析データ周期 | B2: 0時からのずれ | D2: 放逐日時 | F2: GPSメーカー | H2: 機種 | I2: 名目測位数 | J2: 有効測位数 | K2: 有効区間数 | L2: 開始日 | M2: 終了日 | N2: 日数 | O2: 開始日 | P2: 終了日 | Q2: 測位周期 | R2: 0時からのずれ
D4: 標高 | E4: 予備 | F4: X座標 | G4: Y座標 | H4: 単位 測位間隔 区間距離 | I4: 評価期間 中間日時 | J4: 評価期間 有効測位数 | K4: 評価期間 有効区間数 | L4: 評価期間 平均標高 | M4: 評価期間 平均区間距離 | N4: 評価期間 中間時 平均重心距離 | O4: 評価期間 平均X | P4: 評価期間 平均Y | Q4: 最小平均 重心距離 | R4: 最大平均 重心距離
A5: DT | B5: LAT | C5: LON | D5: HGT | E5: EXT | F5: X | G5: Y | H5: UTID | I5: ETMP | J5: NVF | K5: NVI | L5: AHGT | M5: AUTID | N5: mtACD | O5: AX | P5: AY | Q5: minACD | R5: maxACD
A6: Date/Time (Local Time) | B6: Latitude | C6: Longitude | D6: Height | E6: Extra | F6: X | G6: Y | H6: Unit-Time-Interval Distance | I6: Evaluation Time Mid-Point | J6: No. of Valid Fixes | K6: No. of Valid Intervals | L6: Average Height | M6: Average Unit-Time-Interval Distance | N6: mid-timed Av. Centroid Distance | O6: Average X | P6: Average Y | Q6: Min. Av. Centroid Distance | R6: Max. AV. Centroid Distance
A7: ENG
B8: Processed: | I8: Nominal | J8: No. of Valid | L8: Analysis File Data Period | O8: Check file Data Period | Q8: Check File
A9: Analysis Data Interval | B9: Phase Offset | D9: Release Date/Time | F9: GPS Manufacturer | H9: Model | I9: No. of Fixes | J9: Fixes | K9: Intervals | L9: First Date | M9: Last Date | N9: Days | O9: First Date | P9: Last Date | Q9: Time Interval | R9: Phase Offset
H11: Unit-Time | I11: Evaluation T. | J11: Evaluation Period | L11: Evaluation Period | O11: Evaluation Period | Q11: Evaluation Period
A12: DT | B12: LAT | C12: LON | D12: HGT | E12: EXT | F12: X | G12: Y | H12: UTID | I12: ETMP | J12: NVF | K12: NVI | L12: AHGT | M12: AUTID | N12: mtACD | O12: AX | P12: AY | Q12: minACD | R12: maxACD
A13: Date/Time (Local Time) | B13: Latitude | C13: Longitude | D13: Height | E13: Extra | F13: X | G13: Y | H13: Unit-Time-Interval Distance | I13: Evaluation Time Mid-Point | J13: No. of Valid Fixes | K13: No. of Valid Intervals | L13: Average Height | M13: Average Unit-Time-Interval Distance | N13: mid-timed Av. Centroid Distance | O13: Average X | P13: Average Y | Q13: Min. Av. Centroid Distance | R13: Max. AV. Centroid Distance

Sheet OA (hidden)
A1: 概要分析 | C1: 開始 | F1: 終了 | I1: 日数 | K1: 時間間隔 | M1: 処理日時 | Q1: 図サイズ | R1: 12 | S1: 24 | T1: 線の太さ | U1: 1 | V1: 字サイズ | W1: 14 | X1: 横軸刻み | Z1: 副刻み
A2: グラフ番号 | B2: 数量１ | C2: 評価時間 | D2: 数量２ | E2: 評価時間 | F2: 主軸最大 | G2: 副軸最大 | H2: 時間軸 | I2: (1/1)*1
A3: 1 | B3: HGT | C3: 0
A4: 2 | B4: mtACD | C4: 24 | D4: mtACD | E4: 48
A5: 3 | B5: minACD | C5: 24 | D5: minACD | E5: 48
A6: 4 | B6: NVF | C6: 24 | D6: NVI | E6: 24
A7: 5
A8: 6
A9: 7
A10: 8
A11: ENG
A12: Overview Analysis | C12: From | F12: To | I12: Days | K12: Interval | M12: Processed | Q12: Chart Size | R12: 12 | S12: 24 | T12: L. Weight | U12: 1 | V12: Font Size | W12: 14 | X12: Major Unit | Z12: Minor Unit
A13: Chart No. | B13: Variable1 | C13: Eval. Hours | D13: Variable2 | E13: Eval. Hours | F13: 1st axis | G13: 2nd axis | H13: Time Axis | I13: (1/1)*1
A14: 1 | B14: HGT | C14: 0
A15: 2 | B15: mtACD | C15: 24 | D15: mtACD | E15: 48
A16: 3 | B16: minACD | C16: 24 | D16: minACD | E16: 48
A17: 4 | B17: NVF | C17: 24 | D17: NVI | E17: 24
A18: 5
A19: 6
A20: 7
A21: 8

Sheet CA (hidden)
A1: 周期分析 | C1: 開始 | F1: 終了 | I1: 日数 | K1: 時間間隔 | M1: 処理日時 | Q1: 図サイズ | R1: 8 | S1: 6 | T1: 線の太さ | U1: 2 | V1: 字サイズ | W1: 12
A2: 評価時間
A3: 左図 1 | B3: HGT | C3: 右図 1 | D3: NVF
A4: 左図 2 | B4: AHGT | C4: 右図 2 | D4: NVI
A5: 左図 3 | B5: UTID | C5: 右図 3
A6: 左図 4 | B6: AUTID | C6: 右図 4
A7: 左図 5 | B7: mtACD | C7: 右図 5
A8: 左図 6 | C8: 右図 6
A9: 左図 7 | C9: 右図 7
A10: 左図 8 | C10: 右図 8
A11: ENG
A12: Cycle Analysis | C12: From | F12: To | I12: Days | K12: Interval | M12: Processed | Q12: Chart Size | R12: 8 | S12: 6 | T12: L. Weight | U12: 2 | V12: Font Size | W12: 12
A13: Eval. Time
A14: Left 1 | B14: HGT | C14: Right 1 | D14: NVF
A15: Left 2 | B15: AHGT | C15: Right 2 | D15: NVI
A16: Left 3 | B16: UTID | C16: Right 3
A17: Left 4 | B17: AUTID | C17: Right 4
A18: Left 5 | B18: mtACD | C18: Right 5
A19: Left 6 | C19: Right 6
A20: Left 7 | C20: Right 7
A21: Left 8 | C21: Right 8

Sheet PA (hidden)
A1: 軌跡分析 | C1: 開始 | F1: 終了 | I1: 日数 | K1: 時間間隔 | M1: 処理日時 | Q1: 図サイズ | R1: 12 | S1: 24 | T1: 線の太さ | U1: 1 | V1: 字サイズ | W1: 14 | X1: 横軸刻み | Z1: 副刻み | AC1: Segmentation | AE1: tsND | AF1: avD | AG1: cumD | AH1: mcD | AI1: avS | AJ1: PF/ | AK1: Dsiz | AL1: W1 | AM1: W2 | AN1: W3 | AO1: RMVs | AS1: Data Line | AW1: Ev.Radius 1 | BB1: Ev.Radius 2 | BL1: Dual-Anchor Distance | BP1: Stay Duration | BR1: Stay & Move | BW1: cminACD (Composite Min. ACD) | CB1: sminACD (Multiple-Minimum Average Centroid Distance) | CU1: etCD (end-timed Centroid Distance) | DN1: Path-Area Cumulative
A2: 時空間近傍密度図 | C2: 通過 | D2: 全 | 本 | E2: 評価時間 | G2: 評価半径1 | I2: 評価半径2 | K2: 追加図 | L2: DualA | M2: HGT | N2: sminACD | O2: StayMove | P2: NVF | V2: 分割 | W2: 自動削減 | X2: 150 | Y2: 滞在移動図 | Z2: 滞在ACD | AA2: 10 | AC2: CLB | AD2: Date/Time | AO2: Lines | AP2: Pairs to | AQ2: Lines | AS2: Date/Time | AT2: Line | AV2: No. | AW2: Date/Time | AX2: Past | AY2: Future | AZ2: Past | BA2: Future | BB2: Past | BC2: Future | BD2: Past | BE2: Future | BF2: SUM | BG2: DIF | BJ2: Line | BL2: fromA | BM2: fromB | BN2: fromA+B | BP2: Stay Periods | BR2: Stay+Move | BU2: Stay-Stay | BW2: Date/Time | BX2: cminACD | BY2: StayCD | BZ2: Days | CU2: 1 | CV2: 2 | CW2: 3 | CX2: 4 | CY2: 5 | CZ2: 6 | DA2: 12 | DB2: 18 | DC2: 24 | DN2: Path (m) | DO2: Area (ha) | DP2: Path/Area | DQ2: Area/Path
A3: 時間軸拡大 | B3: (1/1)*1 | C3: 現分割数 | E3: 除外候補数 | G3: 分轄経過 | H3: 当初区間数 | J3: 0区間 | L3: F0/0F区間 | N3: 非0均衡区間 | P3: 除外後 | S3: 自動ペア除外 | U3: 除外後 | W3: 介入除外 | Y3: 軌跡面積図 | Z3: 軌跡幅 | AA3: 10 | AP3: remove | BJ3: Status | BP3: Date/Time | BQ3: CD | BR3: Date/Time | BS3: Dist. | BT3: Dist. | BU3: Distance | DN3: from | DP3: Until
V4: 全 | 単
A7: ENG
A8: Path Analysis | C8: From | F8: To | I8: Days | K8: Interval | M8: Processed | Q8: Chart Size | R8: 12 | S8: 24 | T8: L. Weight | U8: 1 | V8: Font Size | W8: 14 | X8: Major Unit | Z8: Minor Unit | AC8: Segmentation | AE8: tsND | AF8: avD | AG8: cumD | AH8: mcD | AI8: avS | AJ8: PF/ | AK8: Dsiz | AL8: W1 | AM8: W2 | AN8: W3 | AO8: RMVs | AS8: Data Line | AW8: Ev.Radius 1 | BB8: Ev.Radius 2 | BL8: Dual-Anchor Distance | BP8: Stay Duration | BR8: Stay & Move | BW8: cminACD (Composite Min. ACD) | CB8: sminACD (Multiple-Minimum Average Centroid Distance) | CU8: etCD (end-timed Centroid Distance) | DN8: Path-Area Cumulative
A9: tsND Chart | C9: Crossing | D9: All | Core | E9: Ev.Time | G9: Ev.Radius 1 | I9: Ev.Radius 2 | K9: Plus Charts | L9: DualA | M9: HGT | N9: sminACD | O9: StayMove | P9: NVF | V9: Segments | W9: Auto-Reduc. | X9: 150 | Y9: StayMove | Z9: StayACD | AA9: 10 | AC9: CLB | AD9: Date/Time | AO9: Lines | AP9: Pairs to | AQ9: Lines | AS9: Date/Time | AT9: Line | AV9: No. | AW9: Date/Time | AX9: Past | AY9: Future | AZ9: Past | BA9: Future | BB9: Past | BC9: Future | BD9: Past | BE9: Future | BF9: SUM | BG9: DIF | BJ9: Line | BL9: fromA | BM9: fromB | BN9: fromA+B | BP9: Stay Periods | BR9: Stay+Move | BU9: Stay-Stay | BW9: Date/Time | BX9: cminACD | BY9: StayCD | BZ9: Days | DN9: Path (m) | DO9: Area (ha) | DP9: Path/Area | DQ9: Area/Path
A10: Time Axis | B10: (1/1)*1 | C10: Curr. #Seg. | E10: To Remove? | G10: Seg. Steps | H10: Init. #Blks | J10: 0 Blocks | L10: F0/0F Blks | N10: Non0Equal | P10: Aft. Remov. | S10: Auto.Remov. | U10: After Remov. | W10: User Remov. | Y10: PathArea | Z10: Path Width | AA10: 10 | AP10: remove | BJ10: Status | BP10: Date/Time | BQ10: CD | BR10: Date/Time | BS10: Dist. | BT10: Dist. | BU10: Distance | DN10: from | DP10: Until

Sheet PP (hidden)
A1: 軌跡図 | C1: 開始 | F1: 終了 | I1: 日数 | K1: 時間間隔 | M1: 処理日時
A2: No. | B2: 時空間密度による分割 | C2: 期間 | J2: ２起点座標 | L2: 起点A | O2: 起点B
A3: ENG
A4: Path Plot | C4: From | F4: To | I4: Days | K4: Time Int. | M4: Processed
A5: No. | B5: Segmentation by TSD | C5: Duration | J5: Dual Anchor Coordinates | L5: Anchor A | O5: Anchor B

Sheet TA (hidden)
A1: 時刻分析 | C1: 開始 | F1: 終了 | I1: 日数 | K1: 時間間隔 | M1: 処理日時
A2: No. | B2: 時空間密度による分割 | C2: 期間 | J2: ２起点座標 | L2: 起点A | O2: 起点B
A3: ENG
A4: Time-of-Day Analysis | C4: From | F4: To | I4: Days | K4: Time Int. | M4: Processed
A5: No. | B5: Segmentation by TSD | C5: Duration | J5: Dual Anchor Coordinates | L5: Anchor A | O5: Anchor B

Sheet ST (hidden)
A1: 近傍密度構造図 | C1: 開始 | F1: 終了 | I1: 日数 | K1: 時間間隔 | M1: 処理日時 | Q1: 図サイズ | R1: 12 | S1: 24 | T1: 線の太さ | U1: 1 | V1: 字サイズ | W1: 14 | X1: 横軸刻み | Z1: 副刻み
A2: No. | B2: 解析日時 | C2: 評価期間 | D2: 評価半径 | E2: Y軸上限値 | Q2: Density Structure
A3: 1
A4: 2 | R4: 本シートの使い方
A5: 3
A6: 4 | R6: 解析日時列（第２列）に目的の日時、評価期間列（第３列）に日数を、評価距離列（第４列）にを入力して、マクロSheetProcessorを実行してください。
A7: 5 | R7: 該当日時前後の指定期間にある測位点との時間差（横軸）、および距離（縦軸）を描きます。
A8: 6 | R8: 評価距離列が空欄だと評価距離は0 mとみなされ、時空間密度は0.となります。
A9: 7
A10: 8
A11: ENG
A12: tsND Structure | C12: From | F12: To | I12: Days | K12: Interval | M12: Processed | Q12: Chart Size | R12: 12 | S12: 20 | T12: L. Weight | U12: 1 | V12: Font Size | W12: 14 | X12: Major Unit | Z12: Minor Unit
A13: No. | B13: Data/Time in Focus | C13: Ev. Hours | D13: Ev.Radius | E13: Max. Y Axis | Q13: Density Structure
A14: 1
A15: 2
A16: 3
A17: 4
A18: 5
A19: 6
A20: 7
A21: 8

Sheet hidden (hidden)
A1: Date of Creation | B1: 2026-06-16T22:16:10 | J1: 期待平均余剰：実測位間隔のデータを仮定間隔で割った場合の期待平均余剰。実間隔に仮定間隔が合致する場合には０となる。仮定間隔がそれより長いとかならず０以上の値を持つ。短いと、０となったり、ならなかったり。 | AU1: 配色 | BI1: OAシートの初期EP値検討 | CG1: '評価期間の最低値を付与
A2: 1st Directory | J2: 余剰 | M2: 実測位間隔 | AV2: R | AW2: G | AX2: B | AZ2: Luminance | BB2: R | BC2: G | BD2: B
A3: 2nd Directory | J3: No, | K3: 仮定間隔 | M3: 1 | N3: 2 | O3: 3 | P3: 4 | Q3: 5 | R3: 6 | S3: 10 | T3: 12 | U3: 15 | V3: 20 | W3: 30 | X3: 60 | Y3: 90 | Z3: 120 | AA3: 180 | AB3: 240 | AC3: 360 | AD3: 480 | AE3: 720 | AS3: 旧 | AT3: 1 | AU3: 黄色 | AV3: 255 | AW3: 255 | AX3: 0 | AZ3: =0.299*AV3+0.587*AW3+0.114*AX3 -> 225.93 | BJ3: 0.25 | BK3: 0.5 | BL3: 1 | BM3: 1.5 | BN3: 2 | BO3: 3 | BP3: 4 | BQ3: 6 | BR3: 8 | BS3: 12 | BT3: 16 | BU3: 24 | BV3: 36 | BW3: 48 | BX3: 72 | BY3: 96 | BZ3: 120 | CA3: 144 | CB3: 168 | CC3: 192
A4: 3rd Directory | J4: 1 | K4: 1 | M4: 0 | N4: 0 | O4: 0 | P4: 0 | Q4: 0 | R4: 0 | S4: 0 | T4: 0 | U4: 0 | V4: 0 | W4: 0 | X4: 0 | Y4: 0 | Z4: 0 | AA4: 0 | AB4: 0 | AC4: 0 | AD4: 0 | AE4: 0 | AT4: 2 | AU4: 薄緑 | AV4: 218 | AW4: 255 | AX4: 218 | AZ4: =0.299*AV4+0.587*AW4+0.114*AX4 -> 239.719 | BI4: 1 | BJ4: =$BL4*BJ$3 -> 15 | BK4: 30 | BL4: =BL$3*60/BI4 -> 60 | BM4: =$BL4*BM$3 -> 90 | BN4: 120 | BO4: 180 | BP4: 240 | BQ4: 360 | BR4: 480 | BS4: 720 | BT4: 960 | BU4: 1440 | BV4: 2160 | BW4: 2880 | BX4: 4320 | BY4: 5760 | BZ4: 7200 | CA4: 8640 | CB4: 10080 | CC4: 11520 | CE4: 0.5, 1.0 | CG4: 1 | CH4: Case Is <= 1: tm = 0.25
J5: 2 | K5: 2 | M5: 0.5 | N5: 0 | O5: 0.5 | P5: 0 | Q5: 0.5 | R5: 0 | S5: 0 | T5: 0 | U5: 0.5 | V5: 0 | W5: 0 | X5: 0 | Y5: 0 | Z5: 0 | AA5: 0 | AB5: 0 | AC5: 0 | AD5: 0 | AE5: 0 | AT5: 3 | AU5: 灰色 | AV5: 212 | AW5: 223 | AX5: 237 | AZ5: =0.299*AV5+0.587*AW5+0.114*AX5 -> 221.307 | BI5: 2 | BJ5: 7.5 | BK5: 15 | BL5: 30 | BM5: 45 | BN5: 60 | BO5: 90 | BP5: 120 | BQ5: 180 | BR5: 240 | BS5: 360 | BT5: 480 | BU5: 720 | BV5: 1080 | BW5: 1440 | BX5: 2160 | BY5: 2880 | BZ5: 3600 | CA5: 4320 | CB5: 5040 | CC5: 5760 | CE5: 1, 2 | CG5: 2 | CH5: Case Is <= 2: tm = 0.5
A6: 平川 | J6: 3 | K6: 3 | M6: 1 | N6: 1 | O6: 0 | P6: 1 | Q6: 1 | R6: 0 | S6: 1 | T6: 0 | U6: 0 | V6: 1 | W6: 0 | X6: 0 | Y6: 0 | Z6: 0 | AA6: 0 | AB6: 0 | AC6: 0 | AD6: 0 | AE6: 0 | AT6: 4 | AU6: ピンク | AV6: 252 | AW6: 228 | AX6: 214 | AZ6: =0.299*AV6+0.587*AW6+0.114*AX6 -> 233.58 | BI6: 3 | BJ6: 5 | BK6: 10 | BL6: 20 | BM6: 30 | BN6: 40 | BO6: 60 | BP6: 80 | BQ6: 120 | BR6: 160 | BS6: 240 | BT6: 320 | BU6: 480 | BV6: 720 | BW6: 960 | BX6: 1440 | BY6: 1920 | BZ6: 2400 | CA6: 2880 | CB6: 3360 | CC6: 3840 | CE6: 1.5, 3 | CG6: 3 | CH6: Case Is <= 3: tm = 1.0
A7: ◯ | B7: 9711 | J7: 4 | K7: 4 | M7: 1.5 | N7: 1 | O7: 1.5 | P7: 0 | Q7: 1.5 | R7: 1 | S7: 1 | T7: 0 | U7: 1.5 | V7: 0 | W7: 1 | X7: 0 | Y7: 1 | Z7: 0 | AA7: 0 | AB7: 0 | AC7: 0 | AD7: 0 | AE7: 0 | BI7: 5 | BJ7: 3 | BK7: 6 | BL7: 12 | BM7: 18 | BN7: 24 | BO7: 36 | BP7: 48 | BQ7: 72 | BR7: 96 | BS7: 144 | BT7: 192 | BU7: 288 | BV7: 432 | BW7: 576 | BX7: 864 | BY7: 1152 | BZ7: 1440 | CA7: 1728 | CB7: 2016 | CC7: 2304 | CE7: 2, 4 | CG7: 4 | CH7: Case Is <= 5: tm = 1.5
A8: ◎ | B8: 9678 | J8: 5 | K8: 5 | M8: 2 | N8: 2 | O8: 2 | P8: 2 | Q8: 0 | R8: 2 | S8: 0 | T8: 2 | U8: 0 | V8: 0 | W8: 0 | X8: 0 | Y8: 0 | Z8: 0 | AA8: 0 | AB8: 0 | AC8: 0 | AD8: 0 | AE8: 0 | AT8: 1 | AU8: 水色 | AV8: 180 | AW8: 220 | AX8: 255 | AZ8: =0.299*AV8+0.587*AW8+0.114*AX8 -> 212.03 | BB8: =AV8+(255-AV8)/4 -> 198.75 | BC8: 228.75 | BD8: 255 | BF8: =0.299*BB8+0.587*BC8+0.114*BD8 -> 222.7725 | BI8: 6 | BJ8: 2.5 | BK8: 5 | BL8: 10 | BM8: 15 | BN8: 20 | BO8: 30 | BP8: 40 | BQ8: 60 | BR8: 80 | BS8: 120 | BT8: 160 | BU8: 240 | BV8: 360 | BW8: 480 | BX8: 720 | BY8: 960 | BZ8: 1200 | CA8: 1440 | CB8: 1680 | CC8: 1920 | CE8: 3, 6 | CG8: 5 | CH8: Case Is <= 6: tm = 2
A9: ● | B9: 9679 | J9: 6 | K9: 6 | M9: 2.5 | N9: 2 | O9: 1.5 | P9: 2 | Q9: 2.5 | R9: 0 | S9: 2 | T9: 0 | U9: 2 | V9: 2 | W9: 0 | X9: 0 | Y9: 0 | Z9: 0 | AA9: 0 | AB9: 0 | AC9: 0 | AD9: 0 | AE9: 0 | AT9: 2 | AU9: オレンジ | AV9: 255 | AW9: 200 | AX9: 120 | AZ9: 207.325 | BB9: 255 | BC9: 213.75 | BD9: 153.75 | BF9: 219.24375 | BI9: 10 | BJ9: 1.5 | BK9: 3 | BL9: 6 | BM9: 9 | BN9: 12 | BO9: 18 | BP9: 24 | BQ9: 36 | BR9: 48 | BS9: 72 | BT9: 96 | BU9: 144 | BV9: 216 | BW9: 288 | BX9: 432 | BY9: 576 | BZ9: 720 | CA9: 864 | CB9: 1008 | CC9: 1152 | CE9: 4, 8 | CG9: 6 | CH9: Case Is <= 10: tm = 3
J10: 7 | K10: 10 | M10: 4.5 | N10: 4 | O10: 4.5 | P10: 4.5 | Q10: 2.5 | R10: 2 | S10: 0 | T10: 2 | U10: 2.5 | V10: 0 | W10: 0 | X10: 0 | Y10: 0 | Z10: 0 | AA10: 0 | AB10: 0 | AC10: 0 | AD10: 0 | AE10: 0 | AT10: 3 | AU10: 緑 | AV10: 170 | AW10: 210 | AX10: 170 | AZ10: 193.48 | BB10: 191.25 | BC10: 221.25 | BD10: 191.25 | BF10: 208.86 | BI10: 12 | BJ10: 1.25 | BK10: 2.5 | BL10: 5 | BM10: 7.5 | BN10: 10 | BO10: 15 | BP10: 20 | BQ10: 30 | BR10: 40 | BS10: 60 | BT10: 80 | BU10: 120 | BV10: 180 | BW10: 240 | BX10: 360 | BY10: 480 | BZ10: 600 | CA10: 720 | CB10: 840 | CC10: 960 | CE10: 6,12 | CG10: 7 | CH10: Case Is <= 12: tm = 4
J11: 8 | K11: 12 | M11: 5.5 | Q11: 2.5 | R11: 3 | S11: 5 | T11: 0 | U11: 4.5 | V11: 4 | W11: 3 | X11: 0 | Y11: 3 | Z11: 0 | AA11: 0 | AB11: 0 | AC11: 0 | AD11: 0 | AE11: 0 | AT11: 4 | AU11: グレー | AV11: 217 | AW11: 217 | AX11: 217 | AZ11: 217 | BB11: 226.5 | BC11: 226.5 | BD11: 226.5 | BF11: 226.5 | BI11: 15 | BJ11: 1 | BK11: 2 | BL11: 4 | BM11: 6 | BN11: 8 | BO11: 12 | BP11: 16 | BQ11: 24 | BR11: 32 | BS11: 48 | BT11: 64 | BU11: 96 | BV11: 144 | BW11: 192 | BX11: 288 | BY11: 384 | BZ11: 480 | CA11: 576 | CB11: 672 | CC11: 768 | CE11: 6,12 | CG11: 8 | CH11: Case Is <= 15: tm = 4
J12: 9 | K12: 15 | Q12: 5 | R12: 6 | S12: 5 | T12: 6 | U12: 0 | V12: 5 | W12: 0 | X12: 0 | Y12: 0 | Z12: 0 | AA12: 0 | AB12: 0 | AC12: 0 | AD12: 0 | AE12: 0 | AT12: 4 | AU12: 淡い紫 | AV12: 220 | AW12: 200 | AX12: 255 | AZ12: 212.25 | BB12: 228.75 | BC12: 213.75 | BD12: 255 | BF12: 222.9375 | BI12: 20 | BJ12: 0.75 | BK12: 1.5 | BL12: 3 | BM12: 4.5 | BN12: 6 | BO12: 9 | BP12: 12 | BQ12: 18 | BR12: 24 | BS12: 36 | BT12: 48 | BU12: 72 | BV12: 108 | BW12: 144 | BX12: 216 | BY12: 288 | BZ12: 360 | CA12: 432 | CB12: 504 | CC12: 576 | CE12: 8,16 | CG12: 9 | CH12: Case Is <= 20: tm = 6
J13: 10 | K13: 20 | S13: 5 | T13: 8 | U13: 7.5 | V13: 0 | W13: 5 | X13: 0 | Y13: 5 | Z13: 0 | AA13: 0 | AB13: 0 | AC13: 0 | AD13: 0 | AE13: 0 | AT13: 4 | AU13: ベージュ | AV13: 245 | AW13: 230 | AX13: 200 | AZ13: 231.065 | BB13: 247.5 | BC13: 236.25 | BD13: 213.75 | BF13: 237.04875 | BI13: 30 | BJ13: 0.5 | BK13: 1 | BL13: 2 | BM13: 3 | BN13: 4 | BO13: 6 | BP13: 8 | BQ13: 12 | BR13: 16 | BS13: 24 | BT13: 32 | BU13: 48 | BV13: 72 | BW13: 96 | BX13: 144 | BY13: 192 | BZ13: 240 | CA13: 288 | CB13: 336 | CC13: 384 | CE13: 12,24 | CG13: 10 | CH13: Case Is <= 30: tm = 8
J14: 11 | K14: 30 | S14: 10 | T14: 12 | U14: 7.5 | V14: 20 | W14: 0 | X14: 0 | Y14: 0 | Z14: 0 | AA14: 0 | AB14: 0 | AC14: 0 | AD14: 0 | AE14: 0 | BH14: 1 | BI14: 60 | BJ14: 0.25 | BK14: 0.5 | BL14: 1 | BM14: 1.5 | BN14: 2 | BO14: 3 | BP14: 4 | BQ14: 6 | BR14: 8 | BS14: 12 | BT14: 16 | BU14: 24 | BV14: 36 | BW14: 48 | BX14: 72 | BY14: 96 | BZ14: 120 | CA14: 144 | CB14: 168 | CC14: 192 | CE14: 24,48 | CG14: 11 | CH14: Case Is <= 60: tm = 12
J15: 12 | K15: 60 | S15: 25 | U15: 22.5 | V15: 20 | W15: 15 | X15: 0 | Y15: 15 | Z15: 0 | AA15: 0 | AB15: 0 | AC15: 0 | AD15: 0 | AE15: 0 | AT15: タブ色 | BH15: 1.5 | BI15: 90 | BJ15: 0.1666666667 | BK15: 0.3333333333 | BL15: 0.6666666667 | BM15: 1 | BN15: 1.333333333 | BO15: 2 | BP15: 2.666666667 | BQ15: 4 | BR15: 5.333333333 | BS15: 8 | BT15: 10.66666667 | BU15: 16 | BV15: 24 | BW15: 32 | BX15: 48 | BY15: 64 | BZ15: 80 | CA15: 96 | CB15: 112 | CC15: 128 | CE15: 36,72 | CG15: 12 | CH15: Case Is <= 90: tm = 24
J16: 13 | K16: 90 | V16: 40 | W16: 30 | X16: 30 | Y16: 0 | Z16: 30 | AA16: 0 | AB16: 30 | AC16: 0 | AD16: 30 | AE16: 0 | AT16: CA | AU16: aqua | AV16: 192 | AW16: 224 | AX16: 255 | BH16: 2 | BI16: 120 | BJ16: 0.125 | BK16: 0.25 | BL16: 0.5 | BM16: 0.75 | BN16: 1 | BO16: 1.5 | BP16: 2 | BQ16: 3 | BR16: 4 | BS16: 6 | BT16: 8 | BU16: 12 | BV16: 18 | BW16: 24 | BX16: 36 | BY16: 48 | BZ16: 60 | CA16: 72 | CB16: 84 | CC16: 96 | CE16: 48,96 | CG16: 13 | CH16: Case Is <= 120: tm = 24
J17: 14 | K17: 120 | W17: 45 | X17: 30 | Y17: 45 | Z17: 0 | AA17: 30 | AB17: 0 | AC17: 0 | AD17: 0 | AE17: 0 | AT17: PA | AU17: green | AV17: 192 | AW17: 246 | AX17: 128 | BH17: 3 | BI17: 180 | BJ17: 0.08333333333 | BK17: 0.1666666667 | BL17: 0.3333333333 | BM17: 0.5 | BN17: 0.6666666667 | BO17: 1 | BP17: 1.333333333 | BQ17: 2 | BR17: 2.666666667 | BS17: 4 | BT17: 5.333333333 | BU17: 8 | BV17: 12 | BW17: 16 | BX17: 24 | BY17: 32 | BZ17: 40 | CA17: 48 | CB17: 56 | CC17: 64 | CE17: 72144 | CG17: 14 | CH17: Case Is <= 180: tm = 36
J18: 15 | K18: 180 | X18: 60 | Y18: 45 | Z18: 60 | AA18: 0 | AB18: 60 | AC18: 0 | AD18: 60 | AE18: 0 | AT18: PP | AU18: orange | AV18: 255 | AW18: 224 | AX18: 160 | BH18: 4 | BI18: 240 | BJ18: 0.0625 | BK18: 0.125 | BL18: 0.25 | BM18: 0.375 | BN18: 0.5 | BO18: 0.75 | BP18: 1 | BQ18: 1.5 | BR18: 2 | BS18: 3 | BT18: 4 | BU18: 6 | BV18: 9 | BW18: 12 | BX18: 18 | BY18: 24 | BZ18: 30 | CA18: 36 | CB18: 42 | CC18: 48 | CE18: 96192 | CG18: 15 | CH18: Case Is <= 240: tm = 48
J19: 16 | K19: 240 | Y19: 105 | Z19: 60 | AA19: 90 | AB19: 0 | AC19: 60 | AD19: 0 | AE19: 0 | AT19: TA | AU19: pink | AV19: 255 | AW19: 192 | AX19: 255 | BH19: 6 | BI19: 360 | BJ19: 0.04166666667 | BK19: 0.08333333333 | BL19: 0.1666666667 | BM19: 0.25 | BN19: 0.3333333333 | BO19: 0.5 | BP19: 0.6666666667 | BQ19: 1 | BR19: 1.333333333 | BS19: 2 | BT19: 2.666666667 | BU19: 4 | BV19: 6 | BW19: 8 | BX19: 12 | BY19: 16 | BZ19: 20 | CA19: 24 | CB19: 28 | CC19: 32 | CE19: 96192 | CG19: 16 | CH19: Case Is <= 360: tm = 72
J20: 17 | K20: 360 | Z20: 120 | AA20: 90 | AB20: 120 | AC20: 0 | AD20: 120 | AE20: 0 | AT20: ST | AU20: yellow | AV20: 255 | AW20: 255 | AX20: 32 | BH20: 8 | BI20: 480 | BJ20: =$BL20*BJ$3 -> 0.03125 | BK20: =$BL20*BK$3 -> 0.0625 | BL20: 0.125 | BM20: 0.1875 | BN20: 0.25 | BO20: 0.375 | BP20: 0.5 | BQ20: 0.75 | BR20: 1 | BS20: 1.5 | BT20: 2 | BU20: 3 | BV20: 4.5 | BW20: 6 | BX20: 9 | BY20: 12 | BZ20: 15 | CA20: =$BL20*CA$3 -> 18 | CB20: 21 | CC20: 24 | CE20: 96192 | CG20: 17 | CH20: Case Is <= 480: tm = 96
J21: 18 | K21: 480 | AA21: 210 | AB21: 120 | AC21: 180 | AD21: 0 | AE21: 0 | BH21: 12 | BI21: 720 | BJ21: =$BL21*BJ$3 -> 0.02083333333 | BK21: 0.04166666667 | BL21: 0.08333333333 | BM21: 0.125 | BN21: 0.1666666667 | BO21: 0.25 | BP21: 0.3333333333 | BQ21: 0.5 | BR21: 0.6666666667 | BS21: 1 | BT21: 1.333333333 | BU21: 2 | BV21: 3 | BW21: 4 | BX21: 6 | BY21: 8 | BZ21: 10 | CA21: 12 | CB21: 14 | CC21: 16 | CE21: 96192 | CG21: 18 | CH21: Case Is <= 720: tm = 144
J22: 19 | K22: 720 | AA22: 270 | AB22: 240 | AC22: 180 | AD22: 240 | AE22: 0
J25: 除外候補の取り扱い
J26: 個別選択 | K26: １回の除外候補数を指定。候補からの取捨選択可。継続の是非も選択。
J27: 自動反復 | K27: １回の除外数と総除外数をあらかじめ指定。処理終了まで自動反復。
J32: Handling of removal candidates
J33: Manual | K33: The analyst chooses which candidates to remove at each step.
J34: Automatic | K34: The analyst initially sets the number of removals at each step and for the total.
